fUSD/lending_fUSD_20240919
["ID","MTS","AMOUNT","RATE_DAILY","PERIOD"]
[338499364,1726704673666,-1167.05,0.00014794,2]
[338499365,1726704673675,-697.54,0.00014794,2]
[338499366,1726704673684,-1337.37,0.00014794,2]
[338499367,1726704673694,-1402.17,0.00014794,2]
[338499368,1726704673703,-2797.26,0.00014794,2]
[338499369,1726704673712,-4444.36,0.00014794,2]
[338499370,1726704673722,-9938.1,0.00014794,2]
[338499371,1726704673731,-500.0,0.00014794,2]
[338499372,1726704673743,-5227.39,0.00014794,2]
[338499373,1726704673752,-500.0,0.00014794,2]
[338499374,1726704673762,-672.81,0.00014794,2]
[338499375,1726704673771,-500.0,0.00014794,2]
[338499376,1726704673780,-500.0,0.00014794,2]
[338499377,1726704673790,-151.0,0.00014794,2]
[338499378,1726704673799,-550.31763982,0.00014797,2]
[338499379,1726704673808,-3000.0,0.000148,2]
[338499380,1726704673818,-1500.0,0.00014806,2]
[338499381,1726704673829,-150.0,0.00014811,2]
[338499382,1726704673840,-242.13851389,0.00014819,2]
[338499383,1726704673859,-1500.0,0.0001482,2]
[338499384,1726704673872,-1500.0,0.00014827,2]
[338499385,1726704673882,-150.0,0.00014829,2]
[338499386,1726704673891,-1870.3008144,0.00014831,2]
[338499387,1726704673900,-210.47341355,0.00014832,2]
[338499388,1726704673910,-838.84484458,0.00014834,2]
[338499389,1726704673919,-150.0,0.00014839,2]
[338499390,1726704673928,-150.0,0.0001484,2]
[338499391,1726704673938,-1500.0,0.00014841,2]
[338499392,1726704673947,-1500.0,0.00014846,2]
[338499393,1726704673956,-150.0,0.00014847,2]
[338499394,1726704673965,-1500.0,0.00014849,2]
[338499395,1726704673974,-1500.0,0.00014853,2]
[338499396,1726704673984,-150.0,0.00014867,2]
[338499397,1726704673999,-150.0,0.00014881,2]
[338499398,1726704674008,-1500.0,0.00014886,2]
[338499399,1726704674018,-150.0,0.00014899,2]
[338499400,1726704674027,-3182.93248107,0.000149,2]
[338499401,1726704674036,-154.87143131,0.000149,2]
[338499402,1726704674046,-1870.3008144,0.000149,2]
[338499403,1726704674055,-846.3313,0.000149,2]
[338499404,1726704674064,-550.31763982,0.000149,2]
[338499405,1726704674073,-150.0,0.00014906,2]
[338499406,1726704674082,-1500.0,0.00014911,2]
[338499407,1726704674091,-504.9989565,0.00014919,2]
[338499408,1726704674100,-1155.0240697,0.00014919,2]
[338499409,1726704674110,-644.9093483,0.00014919,2]
[338499410,1726704674119,-586.57100578,0.00014919,2]
[338499411,1726704674129,-333.6256683,0.00014919,2]
[338499412,1726704674138,-18969.1013391,0.00014919,2]
[338499413,1726704674147,-150.0,0.0001492,2]
[338499414,1726704674157,-299.14108253,0.00014922,2]
[338499415,1726704674167,-2055.78137118,0.00014922,2]
[338499416,1726704674177,-1500.0,0.00014922,2]
[338499417,1726704674187,-30314.7796566,0.00014923,2]
[338499418,1726704674196,-151.0,0.00014923,2]
[338499419,1726704674206,-264.549355,0.00014923,2]
[338499420,1726704674215,-10000.0,0.0001495,2]
[338499421,1726704674225,-300.0,0.0001497,2]
[338499422,1726704674235,-300.0,0.0001497,2]
[338499423,1726704674246,-150.0,0.00014973,2]
[338499424,1726704674255,-1034.535456,0.0001498,2]
[338499425,1726704674265,-914.0468422,0.0001498,2]
[338499426,1726704674274,-793.5582284,0.0001498,2]
[338499427,1726704674283,-673.0696146,0.0001498,2]
[338499428,1726704674292,-552.5810008,0.0001498,2]
[338499429,1726704674301,-577.6343578,0.0001498,2]
[338499430,1726704674311,-510.3593672,0.0001498,2]
[338499431,1726704674320,-443.0843766,0.0001498,2]
[338499432,1726704674329,-375.809386,0.0001498,2]
[338499433,1726704674338,-308.5343955,0.0001498,2]
[338499434,1726704674347,-333.6256683,0.0001498,2]
[338499435,1726704674357,-333.6256683,0.0001498,2]
[338499436,1726704674366,-333.6256683,0.0001498,2]
[338499437,1726704674376,-333.6256683,0.0001498,2]
[338499438,1726704674385,-333.6256683,0.0001498,2]
[338499439,1726704674394,-15393.1138307,0.0001498,2]
[338499440,1726704674403,-11817.1263222,0.0001498,2]
[338499441,1726704674411,-8241.1388138,0.0001498,2]
[338499442,1726704674421,-4665.1513053,0.0001498,2]
[338499443,1726704674430,-1089.1637968,0.0001498,2]
[338499444,1726704674440,-1000.0,0.00014988,2]
[338499445,1726704674449,-150000.0,0.00014988,5]
[338499446,1726704674459,-151.0,0.00014988,2]
[338499447,1726704674469,-151.0,0.00014988,2]
[338499448,1726704674479,-232521.98809028,0.0001499,3]
[338499449,1726704674507,-8200.87099402,0.0001499,3]
[338499450,1726704674519,-9308.27000008,0.0001499,3]
[338499451,1726704674534,-2000.0,0.0001499,3]
[338499452,1726704677090,-710.9,0.0001452,2]
[338499453,1726704677101,-229.97063428,0.0001452,2]
[338499454,1726704677118,-406.14936572,0.0001452,2]
[338499455,1726704677128,-398.22563428,0.0001452,2]
[338499456,1726704677140,-591.92500001,0.0001452,2]
[338499457,1726704677163,-4748.75936571,0.0001452,2]
[338499458,1726704677173,-3133.58,0.0001452,2]
[338499459,1726704677183,-263.83777156,0.00014694,2]
[338499460,1726704677193,-710.9,0.00014794,2]
[338499461,1726704677203,-636.12,0.00014794,2]
[338499462,1726704677212,-5738.91,0.00014794,2]
[338499463,1726704677222,-1328268.66784638,0.0001499,3]
[338499464,1726704677238,-16549.93074277,0.0001499,3]
[338499465,1726704677253,-2604.9921,0.0001499,3]
[338499466,1726704677265,-99279.85199999,0.0001499,3]
[338499467,1726704693268,500.0,0.00011164,2]
[338499468,1726704693872,11510.0,0.000102,5]
[338499469,1726704693919,3086.0,0.000101,3]
[338499470,1726704721532,500.0,0.00011164,2]
[338499471,1726704783897,500.0,0.00011164,2]
[338499472,1726704784935,542.84,0.00012711,2]
[338499473,1726704904824,311.75,0.00011649,2]
[338499474,1726704936971,157.24,0.00010959,2]
[338499484,1726705202919,150.0,0.00010959,2]
[338499485,1726705203508,150.0,0.00010959,2]
[338499486,1726705203727,150.0,0.00010959,2]
[338499487,1726705203935,150.0,0.00010959,2]
[338499488,1726705204382,150.0,0.00010959,2]
[338499489,1726705205000,150.0,0.00010959,2]
[338499490,1726705479932,296.16,0.00011072,2]
[338499491,1726705641798,300.0,0.000127,4]
[338499492,1726705644769,1493.98,0.00012741,2]
[338499498,1726705717264,2000.0,0.00012281,2]
[338499501,1726705732350,2715.52,0.00012303,2]
[338499508,1726705761589,9635.59,0.00012394,2]
[338499513,1726705774346,613.69,0.00012312,2]
[338499524,1726705831890,-302.52,0.00012793,2]
[338499525,1726705831899,-600.0,0.000128,4]
[338499526,1726705831909,-250.0,0.00012805,2]
[338499527,1726705831918,-183.73744764,0.0001287,2]
[338499528,1726705831931,-773.89906667,0.0001288,2]
[338499529,1726705831946,-457.29170079,0.0001288,2]
[338499530,1726705831961,-344.40721085,0.0001288,2]
[338499531,1726705832017,-310.328,0.0001288,2]
[338499532,1726705832028,-438.97982347,0.0001288,2]
[338499533,1726705832556,6019.2095,0.00012699,2]
[338499534,1726705833297,-311.515,0.0001288,2]
[338499558,1726705837879,-434.22504417,0.000128,2]
[338499559,1726705837889,-3060.15071266,0.000128,2]
[338499560,1726705837899,-10631.34549875,0.000128,2]
[338499561,1726705837909,-1839.23858625,0.0001288,2]
[338499562,1726705837919,-729.67147219,0.0001288,2]
[338499563,1726705837929,-900.0,0.000129,4]
[338499564,1726705837937,-183.7305348,0.000129,2]
[338499565,1726705837944,-187.0,0.000129,2]
[338499566,1726705837953,-1463.73999103,0.00012901,2]
[338499567,1726705837961,-1168.938009,0.00012901,2]
[338499568,1726705837969,-1052.58,0.00012901,2]
[338499569,1726705837977,-499.99,0.00012901,2]
[338499570,1726705838258,-231.25,0.0001297,2]
[338499571,1726705838268,-8938.76060298,0.0001298,2]
[338499572,1726705838291,-14951.23939702,0.0001298,2]
[338499573,1726705838301,-152.76,0.0001299,2]
[338499574,1726705838310,-152.76,0.0001299,2]
[338499575,1726705838319,-152.76,0.0001299,2]
[338499576,1726705838328,-7717.85406531,0.00013,2]
[338499577,1726705838340,-1356.55160166,0.00013,2]
[338499578,1726705838351,-515.37635187,0.00013,2]
[338499579,1726705838363,-124245.74287666,0.00013,2]
[338499580,1726705838374,-1079.34910173,0.00013,2]
[338499581,1726705838386,-22537.18002361,0.00013,2]
[338499582,1726705838406,-2511.07328696,0.00013,2]
[338499585,1726705838430,-450.95372915,0.00013,2]
[338499586,1726705838441,-882.6,0.00013,2]
[338499587,1726705838451,-796.44791203,0.00013,2]
[338499588,1726705838463,-16365.39999998,0.00013,2]
[338499589,1726705838474,-1571.90394858,0.00013,2]
[338499590,1726705838502,-618.75914436,0.00013,2]
[338499591,1726705838598,-5200.0,0.00013,2]
[338499592,1726705838610,-48971.44647162,0.00013,2]
[338499593,1726705838621,-11640.76027901,0.00013,2]
[338499594,1726705838632,-914.81898883,0.00013,2]
[338499597,1726705840011,-312.59548381,0.000129,2]
[338499598,1726705840021,-2886.96109572,0.00013,2]
[338499599,1726705840033,-321.3931,0.00013,2]
[338499600,1726705840115,-84571.99702213,0.00013,2]
[338499601,1726705840127,-38671.39032521,0.00013,2]
[338499602,1726705840199,-1661.96238067,0.00013,2]
[338499603,1726705840211,-1262.25643233,0.00013,2]
[338499604,1726705840221,-5184.20181618,0.00013,2]
[338499632,1726705840540,1138.16401617,0.00012622,2]
[338499809,1726705842486,1770.225238,0.00012728,2]
[338499853,1726705842985,-1000.0,0.00012831,2]
[338499855,1726705842995,-1614.9165065,0.00013,2]
[338499856,1726705843028,-1000.99142304,0.00013,2]
[338499857,1726705843039,-388.98691994,0.00013,2]
[338499858,1726705843084,-1929.75557307,0.00013,2]
[338499859,1726705843096,-373633.18072848,0.00013,2]
[338499867,1726705844031,-313268.19611783,0.00013,2]
[338499869,1726705844043,-871.216455,0.00013,2]
[338499892,1726705845893,-311.36819876,0.00013,2]
[338499893,1726705846008,-5295.7,0.00013,2]
[338499894,1726705846021,-447497.70586754,0.00013,2]
[338499895,1726705846123,-3724.40991871,0.00013,2]
[338499896,1726705846134,-49883.19999998,0.00013,2]
[338499897,1726705846145,-49920.38207997,0.00013,2]
[338499898,1726705846156,-4140.53408266,0.00013,2]
[338499901,1726705890722,150.0,0.00014596,120]
[338499902,1726706008214,295.1,0.0001112,2]
[338499903,1726706014996,4104.820221,0.00012706,2]
[338499904,1726706061874,168.08,0.00010959,2]
[338499905,1726706284666,500.0,0.00011164,2]
[338499906,1726706299709,442.49,0.00012361,2]
[338499907,1726706305596,201.99,0.00012732,2]
[338499908,1726706354670,8856.27,0.00012369,2]
[338499910,1726706361245,450.0,0.00012369,2]
[338499911,1726706392379,200.0,0.00012369,2]
[338499912,1726706393379,251.68918349,0.00012,30]
[338499913,1726706402650,150.0,0.00012732,2]
[338499914,1726706403126,201.586603,0.00012732,2]
[338499915,1726706405858,300.0,0.00015,90]
[338499916,1726706438070,250.0,0.0001235,2]
[338499917,1726706491426,500.0,0.00011164,2]
[338499918,1726706492308,436.55153971,0.00014,30]
[338499919,1726706510165,2403.39,0.00012368,2]
[338499920,1726706516925,500.0,0.00011164,2]
[338499921,1726706533078,295.53,0.00010471,2]
[338499922,1726706533356,295.53,0.00012735,2]
[338499923,1726706557168,219.80793522,0.0001266,2]
[338499924,1726706624279,258.4,0.00012217,2]
[338499925,1726706637288,150.0,0.00012265,2]
[338499926,1726706686245,250.0,0.00012265,2]
[338499927,1726706707726,150.0,0.00012326,2]
[338499928,1726706719535,250.0,0.00012311,2]
[338499929,1726706762780,248.61,0.00010959,2]
[338499930,1726706764335,1050.0,0.00011,2]
[338499931,1726706843630,157.37,0.00012229,2]
[338499932,1726706843836,157.37,0.00012236,2]
[338499933,1726706844136,157.37,0.00012242,2]
[338499934,1726706844303,157.37,0.00012248,2]
[338499935,1726706844709,157.37,0.00012254,2]
[338499936,1726706844923,157.37,0.0001226,2]
[338499937,1726706845169,157.37,0.00012266,2]
[338499938,1726706845390,157.37,0.00012272,2]
[338499939,1726706845809,157.37,0.00012278,2]
[338499940,1726706846038,157.37,0.00012284,2]
[338499941,1726706846314,157.37,0.00012291,2]
[338499942,1726706882727,191.21,0.00012542,2]
[338499943,1726706887251,221.24,0.00012542,2]
[338499944,1726706907488,840.0,0.00012558,2]
[338499945,1726706921738,155.30413884,0.0001266,2]
[338499946,1726706996461,8911.6625,0.0001266,2]
[338499958,1726707032123,-636.97482507,0.0001276,2]
[338499959,1726707032148,-363.02517493,0.0001276,2]
[338499960,1726707032163,-99.50698839,0.000128,2]
[338499961,1726707032202,-2238.33801161,0.000128,2]
[338499962,1726707032212,-150.0,0.00012849,2]
[338499963,1726707032222,-300.0,0.00012899,2]
[338499964,1726707032233,-1317.36599199,0.000129,2]
[338499965,1726707032242,-466.78,0.00012919,2]
[338499966,1726707032252,-1523.2,0.00012926,2]
[338499967,1726707032261,-499.99,0.0001294,2]
[338499968,1726707032271,-450.538,0.00012999,2]
[338499969,1726707032281,-179.887,0.00012999,2]
[338499970,1726707032291,-150.0,0.00012999,2]
[338499971,1726707032300,-44005.22812143,0.00013,2]
[338499972,1726707032311,-31094.57336559,0.00013,2]
[338499973,1726707032323,-76472.55718978,0.00013,2]
[338499974,1726707032333,-688.34306035,0.00013,2]
[338499975,1726707032343,-9816.174,0.00013,2]
[338499976,1726707032352,-170.1,0.00013034,2]
[338499977,1726707032362,-155.84,0.00013037,2]
[338499978,1726707032372,-1317.3659919,0.00013122,2]
[338499979,1726707032381,-1317.3659919,0.00013344,2]
[338499980,1726707032391,-851.55997,0.00013381,2]
[338499981,1726707032404,-2000.0,0.000135,2]
[338499982,1726707032694,-1317.3659919,0.00013567,2]
[338499983,1726707032704,-150.0,0.00013699,2]
[338499984,1726707032715,-890.0995,0.000137,2]
[338499985,1726707032725,-1807.2212,0.000137,2]
[338499986,1726707032734,-1317.3659919,0.00013789,2]
[338499987,1726707032744,-3923.2349,0.000138,2]
[338499988,1726707032755,-401.64,0.000138,2]
[338499989,1726707032765,-796.0,0.00013831,2]
[338499990,1726707032775,-1511.47,0.0001386,2]
[338499991,1726707032784,-281.751254,0.000139,2]
[338499992,1726707032795,-300.0,0.000139,5]
[338499993,1726707032806,-500.0,0.00013904,2]
[338499994,1726707032815,-500.0,0.00013904,2]
[338499995,1726707032825,-200.0,0.00013915,2]
[338499996,1726707032834,-2000.0,0.00014,2]
[338499997,1726707032844,-700.0,0.00014,5]
[338499998,1726707032854,-1317.3659919,0.00014011,2]
[338499999,1726707032863,-150.0,0.00014059,2]
[338500000,1726707032873,-1000.0,0.000141,5]
[338500001,1726707032882,-255.0,0.00014104,2]
[338500002,1726707032891,-191.21,0.00014109,2]
[338500003,1726707032908,-840.0,0.00014128,2]
[338500004,1726707032918,-1400.0,0.000142,5]
[338500005,1726707032926,-163.289,0.00014214,2]
[338500006,1726707032936,-151.614,0.00014214,2]
[338500007,1726707032945,-1317.3659919,0.00014233,2]
[338500008,1726707032954,-183.570775,0.00014247,2]
[338500009,1726707032963,-1700.0,0.000143,5]
[338500010,1726707032972,-300.0,0.000144,5]
[338500011,1726707032981,-150.0,0.0001442,2]
[338500012,1726707032991,-189.15284033,0.0001442,2]
[338500013,1726707033000,-159.38136408,0.0001442,2]
[338500014,1726707033009,-174.16952652,0.0001442,2]
[338500015,1726707033018,-167.4728,0.0001442,2]
[338500016,1726707033028,-168.75887935,0.0001442,2]
[338500017,1726707033037,-316.51690375,0.0001442,2]
[338500018,1726707033047,-310.26052552,0.00014445,2]
[338500019,1726707033057,-11130.1,0.00014455,2]
[338500020,1726707033067,-1317.3659919,0.00014456,2]
[338500021,1726707033076,-1688.786,0.0001448,2]
[338500022,1726707033089,-1566.98,0.0001448,2]
[338500023,1726707033098,-1698.87,0.0001448,2]
[338500024,1726707033108,-2567.889,0.0001448,2]
[338500025,1726707033118,-2655.7896,0.0001448,2]
[338500026,1726707033128,-2588.978,0.0001448,2]
[338500027,1726707033137,-1804.30170066,0.0001448,2]
[338500028,1726707033153,-2297.39814295,0.0001448,2]
[338500029,1726707033166,-300.0,0.000145,5]
[338500030,1726707033176,-1861.56315312,0.000145,2]
[338500031,1726707033186,-310.26052552,0.0001451,2]
[338500032,1726707033197,-39820.7444039,0.0001451,2]
[338500033,1726707033207,-171.08649104,0.0001451,2]
[338500034,1726707033216,-154.61,0.0001451,2]
[338500035,1726707033226,-11169.41,0.0001452,2]
[338500036,1726707033236,-151.0,0.0001452,2]
[338500037,1726707033246,-500.0,0.0001452,2]
[338500038,1726707033255,-500.0,0.0001452,2]
[338500039,1726707033264,-500.0,0.0001452,2]
[338500040,1726707033273,-500.0,0.0001452,2]
[338500041,1726707033283,-500.0,0.0001452,2]
[338500042,1726707033292,-500.0,0.0001452,2]
[338500043,1726707033301,-500.0,0.0001452,2]
[338500044,1726707033311,-500.0,0.0001452,2]
[338500045,1726707033320,-264.19418151,0.0001452,2]
[338500046,1726707033334,-367.18194872,0.0001452,2]
[338500047,1726707033344,-370.41658808,0.0001452,2]
[338500048,1726707033355,-129.58341192,0.0001452,2]
[338500049,1726707033364,-500.0,0.0001452,2]
[338500050,1726707033374,-500.0,0.0001452,2]
[338500051,1726707033383,-159.41277271,0.0001452,2]
[338500052,1726707033392,-500.0,0.0001452,2]
[338500053,1726707033409,-500.0,0.0001452,2]
[338500054,1726707033418,-500.0,0.0001452,2]
[338500055,1726707033428,-500.0,0.0001452,2]
[338500056,1726707033438,-500.0,0.0001452,2]
[338500057,1726707033459,-500.0,0.0001452,2]
[338500058,1726707033469,-500.0,0.0001452,2]
[338500059,1726707033479,-500.0,0.0001452,2]
[338500060,1726707033489,-500.0,0.0001452,2]
[338500061,1726707033499,-500.0,0.0001452,2]
[338500062,1726707033510,-500.0,0.0001452,2]
[338500063,1726707033520,-533.033229,0.0001452,2]
[338500064,1726707033530,-500.0,0.0001452,2]
[338500065,1726707033541,-500.0,0.0001452,2]
[338500066,1726707033551,-500.0,0.0001452,2]
[338500067,1726707033561,-500.0,0.0001452,2]
[338500068,1726707033571,-500.0,0.0001452,2]
[338500069,1726707033581,-500.0,0.0001452,2]
[338500070,1726707033591,-500.0,0.0001452,2]
[338500071,1726707033601,-151.0,0.0001452,2]
[338500072,1726707033611,-4.69199337,0.0001452,2]
[338500073,1726707033720,-495.30800663,0.0001452,2]
[338500074,1726707033731,-388.24194337,0.0001452,2]
[338500075,1726707033743,-111.75805663,0.0001452,2]
[338500076,1726707033753,-510.24,0.0001452,2]
[338500077,1726707033763,-224.47194337,0.0001452,2]
[338500078,1726707033776,-275.52805663,0.0001452,2]
[338500079,1726707033786,-74.70194327,0.0001452,2]
[338500080,1726707033798,-425.29805673,0.0001452,2]
[338500081,1726707033808,-1761.44,0.0001452,2]
[338500082,1726707033818,-1206.17,0.0001452,2]
[338500083,1726707033828,-500.0,0.0001452,2]
[338500084,1726707033837,-1449.95,0.0001452,2]
[338500085,1726707033847,-605.87,0.0001452,2]
[338500086,1726707033857,-1380.64,0.0001452,2]
[338500087,1726707033867,-343.42587522,0.0001452,2]
[338500088,1726707033879,-2913.63412478,0.0001452,2]
[338500089,1726707033890,-1518.31,0.0001452,2]
[338500090,1726707033905,-151.0,0.0001452,2]
[338500091,1726707033915,-151.0,0.0001452,2]
[338500092,1726707033924,-163.00393089,0.0001452,2]
[338500093,1726707033934,-362.77255274,0.0001452,2]
[338500094,1726707033944,-621.22,0.0001452,2]
[338500095,1726707033954,-2322.97,0.0001452,2]
[338500096,1726707033964,-1100.34,0.0001452,2]
[338500097,1726707033973,-500.0,0.0001452,2]
[338500098,1726707033983,-500.0,0.0001452,2]
[338500099,1726707033993,-500.0,0.0001452,2]
[338500100,1726707034002,-104.8131369,0.0001452,2]
[338500101,1726707034015,-1075.2768631,0.0001452,2]
[338500102,1726707034025,-500.0,0.0001452,2]
[338500103,1726707034035,-500.0,0.0001452,2]
[338500104,1726707034044,-906.09,0.0001452,2]
[338500105,1726707034053,-220.39284179,0.0001452,2]
[338500106,1726707034066,-279.60715821,0.0001452,2]
[338500107,1726707034076,-500.0,0.0001452,2]
[338500108,1726707034085,-500.0,0.0001452,2]
[338500109,1726707034095,-970.14,0.0001452,2]
[338500110,1726707034104,-1680.39,0.0001452,2]
[338500111,1726707034114,-500.0,0.0001452,2]
[338500112,1726707034123,-500.0,0.0001452,2]
[338500113,1726707034135,-1109.67,0.0001452,2]
[338500114,1726707034144,-500.0,0.0001452,2]
[338500115,1726707034160,-500.0,0.0001452,2]
[338500116,1726707034170,-500.0,0.0001452,2]
[338500117,1726707034179,-500.0,0.0001452,2]
[338500118,1726707034189,-500.0,0.0001452,2]
[338500119,1726707034199,-500.0,0.0001452,2]
[338500120,1726707034208,-500.0,0.0001452,2]
[338500121,1726707034218,-500.0,0.0001452,2]
[338500122,1726707034228,-690.74285647,0.0001452,2]
[338500123,1726707034242,-47.20714353,0.0001452,2]
[338500124,1726707034252,-500.0,0.0001452,2]
[338500125,1726707034262,-500.0,0.0001452,2]
[338500126,1726707034272,-500.0,0.0001452,2]
[338500127,1726707034282,-2174.78,0.0001452,2]
[338500128,1726707034292,-1057.25,0.0001452,2]
[338500129,1726707034301,-500.0,0.0001452,2]
[338500130,1726707034311,-151.0,0.0001452,2]
[338500131,1726707034320,-500.0,0.0001452,2]
[338500132,1726707034330,-500.0,0.0001452,2]
[338500133,1726707034340,-981.43,0.0001452,2]
[338500134,1726707034349,-601.92,0.0001452,2]
[338500135,1726707034359,-1406.99,0.0001452,2]
[338500136,1726707034369,-731.69,0.0001452,2]
[338500137,1726707034379,-500.0,0.0001452,2]
[338500138,1726707034388,-500.0,0.0001452,2]
[338500139,1726707034402,-1057.9,0.0001452,2]
[338500140,1726707034412,-500.0,0.0001452,2]
[338500141,1726707034421,-500.0,0.0001452,2]
[338500142,1726707034432,-500.0,0.0001452,2]
[338500143,1726707034442,-500.0,0.0001452,2]
[338500144,1726707034452,-2436.91,0.0001452,2]
[338500145,1726707034462,-500.0,0.0001452,2]
[338500146,1726707034471,-563.09,0.0001452,2]
[338500147,1726707034481,-500.0,0.0001452,2]
[338500148,1726707034490,-500.0,0.0001452,2]
[338500149,1726707034500,-500.0,0.0001452,2]
[338500150,1726707034511,-952.07,0.0001452,2]
[338500151,1726707034521,-1268.59,0.0001452,2]
[338500152,1726707034531,-745.11,0.0001452,2]
[338500153,1726707034540,-500.0,0.0001452,2]
[338500154,1726707034551,-699.03,0.0001452,2]
[338500155,1726707034560,-500.0,0.0001452,2]
[338500156,1726707034570,-980.27,0.0001452,2]
[338500157,1726707034580,-769.83,0.0001452,2]
[338500158,1726707034590,-500.0,0.0001452,2]
[338500159,1726707034599,-500.0,0.0001452,2]
[338500160,1726707034609,-500.0,0.0001452,2]
[338500161,1726707034619,-500.0,0.0001452,2]
[338500162,1726707034629,-1111.87,0.0001452,2]
[338500163,1726707034639,-1406.21,0.0001452,2]
[338500164,1726707034652,-500.0,0.0001452,2]
[338500165,1726707034661,-569.85,0.0001452,2]
[338500166,1726707034671,-500.0,0.0001452,2]
[338500167,1726707034681,-500.0,0.0001452,2]
[338500168,1726707034691,-500.0,0.0001452,2]
[338500169,1726707034700,-500.0,0.0001452,2]
[338500170,1726707034710,-500.0,0.0001452,2]
[338500171,1726707034720,-926.29,0.0001452,2]
[338500172,1726707034730,-500.0,0.0001452,2]
[338500173,1726707034739,-500.0,0.0001452,2]
[338500174,1726707034749,-500.0,0.0001452,2]
[338500175,1726707034759,-500.0,0.0001452,2]
[338500176,1726707034769,-500.0,0.0001452,2]
[338500177,1726707034778,-500.0,0.0001452,2]
[338500178,1726707034787,-500.0,0.0001452,2]
[338500179,1726707034796,-500.0,0.0001452,2]
[338500180,1726707034806,-820.57,0.0001452,2]
[338500181,1726707034815,-1717.25,0.0001452,2]
[338500182,1726707034825,-500.0,0.0001452,2]
[338500183,1726707034835,-500.0,0.0001452,2]
[338500184,1726707034846,-500.0,0.0001452,2]
[338500185,1726707034855,-151.0,0.0001452,2]
[338500186,1726707034865,-842.37,0.0001452,2]
[338500187,1726707034874,-500.0,0.0001452,2]
[338500188,1726707034883,-500.0,0.0001452,2]
[338500189,1726707034892,-151.0,0.0001452,2]
[338500190,1726707034906,-1063.41,0.0001452,2]
[338500191,1726707034916,-738.33,0.0001452,2]
[338500192,1726707034925,-1153.87,0.0001452,2]
[338500193,1726707034935,-500.0,0.0001452,2]
[338500194,1726707034944,-500.0,0.0001452,2]
[338500195,1726707034954,-542.72,0.0001452,2]
[338500196,1726707034963,-500.0,0.0001452,2]
[338500197,1726707034972,-500.0,0.0001452,2]
[338500198,1726707034982,-1964.81,0.0001452,2]
[338500199,1726707034991,-721.21,0.0001452,2]
[338500200,1726707035000,-671.14,0.0001452,2]
[338500201,1726707035010,-500.0,0.0001452,2]
[338500202,1726707035019,-500.0,0.0001452,2]
[338500203,1726707035029,-625.71,0.0001452,2]
[338500204,1726707035040,-622.41,0.0001452,2]
[338500205,1726707035050,-500.0,0.0001452,2]
[338500206,1726707035059,-1054.95,0.0001452,2]
[338500207,1726707035068,-789.87,0.0001452,2]
[338500208,1726707035077,-500.0,0.0001452,2]
[338500209,1726707035088,-500.0,0.0001452,2]
[338500210,1726707035098,-500.0,0.0001452,2]
[338500211,1726707035108,-763.52,0.0001452,2]
[338500212,1726707035119,-500.0,0.0001452,2]
[338500213,1726707035128,-500.0,0.0001452,2]
[338500214,1726707035137,-517.51802253,0.0001452,2]
[338500215,1726707035152,-954.95,0.0001452,2]
[338500216,1726707035164,-500.0,0.0001452,2]
[338500217,1726707035173,-500.0,0.0001452,2]